[Event "Late-Titled-Tuesday-Blitz-October-10-2023"]
[Site "Chess.com"]
[Date "2023.10.10"]
[Round "4"]
[White "Zampronha1971"]
[Black "PNEPaul"]
[Result "1-0"]
[WhiteElo "2285"]
[BlackElo "1986"]
[TimeControl "180+1"]
[EndTime "14:36:51 PDT"]
[Termination "Zampronha1971 won on time"]

1. e4 {[%clk 0:03:00.9]} 1... e5 {[%clk 0:02:39.8]} 2. Nf3 {[%clk 0:03:00.1]}
2... Nc6 {[%clk 0:02:37.9]} 3. d4 {[%clk 0:03:01]} 3... exd4 {[%clk 0:02:37]} 4.
Nxd4 {[%clk 0:03:00.9]} 4... Be7 {[%clk 0:02:36.8]} 5. Nc3 {[%clk 0:02:51.7]}
5... Nf6 {[%clk 0:02:36.8]} 6. Nxc6 {[%clk 0:02:49]} 6... dxc6 {[%clk
0:02:36.3]} 7. Bf4 {[%clk 0:02:40.7]} 7... O-O {[%clk 0:02:33.3]} 8. Qxd8 {[%clk
0:02:37.6]} 8... Bxd8 {[%clk 0:02:33]} 9. f3 {[%clk 0:02:37]} 9... Be6 {[%clk
0:02:27.9]} 10. Be2 {[%clk 0:02:34.1]} 10... Rc8 {[%clk 0:02:27.1]} 11. O-O-O
{[%clk 0:02:29.8]} 11... Nd7 {[%clk 0:02:15.8]} 12. Bc4 {[%clk 0:02:16.6]} 12...
Bxc4 {[%clk 0:02:13.9]} 13. Rxd7 {[%clk 0:02:15.3]} 13... Be6 {[%clk 0:02:09.5]}
14. Rd2 {[%clk 0:02:14.6]} 14... Bf6 {[%clk 0:02:07.9]} 15. Ne2 {[%clk
0:02:07.9]} 15... h6 {[%clk 0:01:51.2]} 16. Rhd1 {[%clk 0:02:05.6]} 16... g5
{[%clk 0:01:45.4]} 17. Be3 {[%clk 0:02:04.7]} 17... b6 {[%clk 0:01:33.7]} 18.
Bd4 {[%clk 0:01:59.6]} 18... Be7 {[%clk 0:01:21]} 19. a3 {[%clk 0:01:52.6]}
19... Rfd8 {[%clk 0:01:13]} 20. Be5 {[%clk 0:01:49.1]} 20... Rxd2 {[%clk
0:01:09.4]} 21. Rxd2 {[%clk 0:01:50]} 21... Kf8 {[%clk 0:01:05.7]} 22. Nd4
{[%clk 0:01:44.7]} 22... Bd7 {[%clk 0:00:40.9]} 23. Nb5 {[%clk 0:01:24.8]} 23...
cxb5 {[%clk 0:00:19.4]} 24. Rxd7 {[%clk 0:01:25.2]} 24... Ke8 {[%clk 0:00:15.6]}
25. Rxc7 {[%clk 0:01:21.6]} 25... Rxc7 {[%clk 0:00:15.6]} 26. Bxc7 {[%clk
0:01:22.2]} 26... Kd7 {[%clk 0:00:15.7]} 27. Bg3 {[%clk 0:01:11.2]} 27... Ke6
{[%clk 0:00:15.4]} 28. Kd2 {[%clk 0:01:09.8]} 28... f5 {[%clk 0:00:14.9]} 29.
exf5+ {[%clk 0:01:07.2]} 29... Kxf5 {[%clk 0:00:14.8]} 30. Kd3 {[%clk
0:01:04.6]} 30... a6 {[%clk 0:00:12]} 31. Bf2 {[%clk 0:01:02.8]} 31... Bc5
{[%clk 0:00:11.1]} 32. Bxc5 {[%clk 0:01:00]} 32... bxc5 {[%clk 0:00:11.2]} 33.
b4 {[%clk 0:00:55]} 33... c4+ {[%clk 0:00:10.5]} 34. Kd4 {[%clk 0:00:54.4]}
34... h5 {[%clk 0:00:08]} 35. g3 {[%clk 0:00:47]} 35... h4 {[%clk 0:00:04.4]}
36. Kd5 {[%clk 0:00:37.2]} 36... hxg3 {[%clk 0:00:03.8]} 37. hxg3 {[%clk
0:00:36.5]} 37... g4 {[%clk 0:00:01.3]} 38. f4 {[%clk 0:00:36.4]} 38... Kf6
{[%clk 0:00:01.2]} 39. Ke4 {[%clk 0:00:18.5]} 1-0

[Event "Late-Titled-Tuesday-Blitz-October-10-2023"]
[Site "Chess.com"]
[Date "2023.10.10"]
[Round "4"]
[White "Freefresh"]
[Black "andrzej"]
[Result "0-1"]
[WhiteElo "2735"]
[BlackElo "2481"]
[TimeControl "180+1"]
[EndTime "14:36:52 PDT"]
[Termination "andrzej won on time"]

1. f3 {[%clk 0:02:57.8]} 1... d5 {[%clk 0:02:53.1]} 2. c3 {[%clk 0:02:58.7]}
2... e5 {[%clk 0:02:52.5]} 3. Qa4+ {[%clk 0:02:59.4]} 3... Nc6 {[%clk
0:02:49.4]} 4. e4 {[%clk 0:02:59.1]} 4... Nf6 {[%clk 0:02:48.7]} 5. Bb5 {[%clk
0:02:56.1]} 5... Bd7 {[%clk 0:02:47.5]} 6. exd5 {[%clk 0:02:55.5]} 6... Nxd5
{[%clk 0:02:47.4]} 7. Qb3 {[%clk 0:02:35.1]} 7... Nb6 {[%clk 0:02:46.5]} 8. Ne2
{[%clk 0:02:33.9]} 8... Bc5 {[%clk 0:02:39.7]} 9. d4 {[%clk 0:02:24]} 9... exd4
{[%clk 0:02:39.7]} 10. cxd4 {[%clk 0:02:22.9]} 10... Nxd4 {[%clk 0:02:36.8]} 11.
Nxd4 {[%clk 0:02:20.9]} 11... Qh4+ {[%clk 0:02:26.6]} 12. Kd1 {[%clk 0:01:58.7]}
12... Qxd4+ {[%clk 0:02:23.7]} 13. Bd2 {[%clk 0:01:59.1]} 13... O-O-O {[%clk
0:02:18.2]} 14. Kc1 {[%clk 0:01:50.4]} 14... Bxb5 {[%clk 0:02:15.9]} 15. Qxb5
{[%clk 0:01:51.3]} 15... Nc4 {[%clk 0:02:14.7]} 16. Rd1 {[%clk 0:01:44.8]} 16...
Nxd2 {[%clk 0:02:00.5]} 17. Nxd2 {[%clk 0:01:41.8]} 17... Qf2 {[%clk 0:01:56.2]}
18. a4 {[%clk 0:00:25.4]} 18... Rxd2 {[%clk 0:01:50.8]} 19. Rxd2 {[%clk
0:00:20.2]} 19... Be3 {[%clk 0:01:51]} 20. Qf5+ {[%clk 0:00:20.7]} 20... Kb8
{[%clk 0:01:51.1]} 21. Qd3 {[%clk 0:00:20.8]} 21... Re8 {[%clk 0:01:42]} 22. Kc2
{[%clk 0:00:20]} 22... Bxd2 {[%clk 0:01:41.1]} 23. Rf1 {[%clk 0:00:19.6]} 23...
Qxg2 {[%clk 0:01:38.3]} 24. Qd7 {[%clk 0:00:19.6]} 24... Rc8 {[%clk 0:01:21.9]}
25. Rd1 {[%clk 0:00:16.9]} 25... Bf4+ {[%clk 0:01:14.5]} 26. Kb1 {[%clk
0:00:17]} 26... Qxf3 {[%clk 0:01:11.5]} 27. Rd3 {[%clk 0:00:16.9]} 27... Qf1+
{[%clk 0:01:10.8]} 28. Ka2 {[%clk 0:00:16.1]} 28... Bd6 {[%clk 0:01:11.3]} 29.
Rb3 {[%clk 0:00:16.2]} 29... Qc4 {[%clk 0:01:01.4]} 30. a5 {[%clk 0:00:16.3]}
30... a6 {[%clk 0:01:01.1]} 31. h4 {[%clk 0:00:15.7]} 31... h5 {[%clk
0:01:00.3]} 32. Qh3 {[%clk 0:00:08.6]} 32... Qa4+ {[%clk 0:00:56.4]} 33. Kb1
{[%clk 0:00:08.9]} 33... Qxa5 {[%clk 0:00:56.9]} 34. Qf3 {[%clk 0:00:09.3]}
34... b6 {[%clk 0:00:44.5]} 35. Qxf7 {[%clk 0:00:08.2]} 35... Qe1+ {[%clk
0:00:42.8]} 36. Ka2 {[%clk 0:00:07.9]} 36... Qe8 {[%clk 0:00:34.2]} 37. Qd5
{[%clk 0:00:07]} 37... Qa4+ {[%clk 0:00:33.1]} 38. Kb1 {[%clk 0:00:06.7]} 38...
Re8 {[%clk 0:00:24]} 39. Kc2 {[%clk 0:00:02.3]} 39... Re5 {[%clk 0:00:20.1]} 0-1

[Event "Late-Titled-Tuesday-Blitz-October-10-2023"]
[Site "Chess.com"]
[Date "2023.10.10"]
[Round "4"]
[White "sergiochess83"]
[Black "mishanick"]
[Result "0-1"]
[WhiteElo "2869"]
[BlackElo "3094"]
[TimeControl "180+1"]
[EndTime "14:36:56 PDT"]
[Termination "mishanick won on time"]

1. d4 {[%clk 0:02:56.6]} 1... Nf6 {[%clk 0:03:00]} 2. c4 {[%clk 0:02:55.4]} 2...
e6 {[%clk 0:02:59.9]} 3. Nc3 {[%clk 0:02:55.7]} 3... Bb4 {[%clk 0:03:00.2]} 4.
e3 {[%clk 0:02:55.3]} 4... O-O {[%clk 0:02:59.9]} 5. Bd3 {[%clk 0:02:54.4]} 5...
d5 {[%clk 0:03:00.4]} 6. cxd5 {[%clk 0:02:49]} 6... exd5 {[%clk 0:03:00.5]} 7.
Ne2 {[%clk 0:02:49.6]} 7... Na6 {[%clk 0:02:57.2]} 8. O-O {[%clk 0:02:40.1]}
8... Bd6 {[%clk 0:02:51]} 9. f3 {[%clk 0:02:37.5]} 9... c5 {[%clk 0:02:51]} 10.
dxc5 {[%clk 0:02:35.3]} 10... Nxc5 {[%clk 0:02:49.9]} 11. Bc2 {[%clk 0:02:33.6]}
11... Be6 {[%clk 0:02:49.9]} 12. Nb5 {[%clk 0:02:18.1]} 12... Be5 {[%clk
0:02:43.2]} 13. Nbd4 {[%clk 0:02:18.3]} 13... Qb6 {[%clk 0:02:41.1]} 14. b3
{[%clk 0:02:13.1]} 14... Rfe8 {[%clk 0:02:39.2]} 15. Bb2 {[%clk 0:02:13.2]}
15... Bd7 {[%clk 0:02:37]} 16. Qd2 {[%clk 0:02:13.5]} 16... Re7 {[%clk
0:02:33.2]} 17. Rfe1 {[%clk 0:02:10.2]} 17... Rae8 {[%clk 0:02:33.3]} 18. Ng3
{[%clk 0:02:04.3]} 18... Qc7 {[%clk 0:02:11.3]} 19. Nf1 {[%clk 0:01:56.4]} 19...
a5 {[%clk 0:01:57.7]} 20. Rac1 {[%clk 0:01:56.3]} 20... b6 {[%clk 0:01:58.1]}
21. Bb1 {[%clk 0:01:51.2]} 21... Qb8 {[%clk 0:01:56]} 22. Ne2 {[%clk 0:01:26.5]}
22... Bb5 {[%clk 0:01:51.2]} 23. Bxe5 {[%clk 0:01:17.4]} 23... Qxe5 {[%clk
0:01:50.4]} 24. Neg3 {[%clk 0:01:00]} 24... Bxf1 {[%clk 0:01:49.6]} 25. Nxf1
{[%clk 0:00:59.5]} 25... h5 {[%clk 0:01:42.9]} 26. Qf2 {[%clk 0:00:54]} 26...
Qd6 {[%clk 0:01:32.4]} 27. Red1 {[%clk 0:00:53]} 27... a4 {[%clk 0:01:22.2]} 28.
b4 {[%clk 0:00:47.8]} 28... Ncd7 {[%clk 0:01:22.4]} 29. a3 {[%clk 0:00:46]}
29... Ne5 {[%clk 0:01:18.1]} 30. e4 {[%clk 0:00:41.8]} 30... Ng6 {[%clk
0:01:12.6]} 31. g3 {[%clk 0:00:37]} 31... Qb8 {[%clk 0:01:06.7]} 32. exd5 {[%clk
0:00:25.9]} 32... Re2 {[%clk 0:01:06.7]} 33. Qd4 {[%clk 0:00:26.6]} 33... Ne5
{[%clk 0:01:06.4]} 34. Rc3 {[%clk 0:00:24.6]} 34... Rd8 {[%clk 0:00:58.7]} 35.
d6 {[%clk 0:00:21.9]} 35... Qb7 {[%clk 0:00:49.3]} 36. Be4 {[%clk 0:00:07.3]}
36... Nxe4 {[%clk 0:00:38.3]} 37. fxe4 {[%clk 0:00:08.2]} 37... Qd7 {[%clk
0:00:18.1]} 38. Qxe5 {[%clk 0:00:07.6]} 38... Qh3 {[%clk 0:00:18]} 0-1

[Event "Late-Titled-Tuesday-Blitz-October-10-2023"]
[Site "Chess.com"]
[Date "2023.10.10"]
[Round "4"]
[White "Kostukov_Alex"]
[Black "KejJaj"]
[Result "0-1"]
[WhiteElo "2370"]
[BlackElo "2172"]
[TimeControl "180+1"]
[EndTime "14:36:57 PDT"]
[Termination "KejJaj won on time"]

1. g3 {[%clk 0:02:52.2]} 1... f5 {[%clk 0:02:57.1]} 2. Bg2 {[%clk 0:02:46.7]}
2... Nf6 {[%clk 0:02:57.6]} 3. d4 {[%clk 0:02:47.3]} 3... e6 {[%clk 0:02:57.1]}
4. c4 {[%clk 0:02:47.9]} 4... d5 {[%clk 0:02:57.2]} 5. Nf3 {[%clk 0:02:47.6]}
5... c6 {[%clk 0:02:57.7]} 6. O-O {[%clk 0:02:48.2]} 6... Bd6 {[%clk 0:02:58.1]}
7. Nc3 {[%clk 0:02:47.2]} 7... O-O {[%clk 0:02:57.3]} 8. Bf4 {[%clk 0:02:47.3]}
8... Bxf4 {[%clk 0:02:56.7]} 9. gxf4 {[%clk 0:02:48.2]} 9... Nbd7 {[%clk
0:02:48.7]} 10. Qb3 {[%clk 0:02:43.2]} 10... Kh8 {[%clk 0:02:42.4]} 11. e3
{[%clk 0:02:43]} 11... Ne4 {[%clk 0:02:41.1]} 12. Nxe4 {[%clk 0:02:37.7]} 12...
fxe4 {[%clk 0:02:40.8]} 13. Ne5 {[%clk 0:02:38.1]} 13... Nxe5 {[%clk 0:02:40.4]}
14. dxe5 {[%clk 0:02:35.5]} 14... Rf5 {[%clk 0:02:35.7]} 15. f3 {[%clk
0:02:28.6]} 15... exf3 {[%clk 0:02:25.3]} 16. Rxf3 {[%clk 0:02:28.4]} 16... Qb6
{[%clk 0:01:47.4]} 17. cxd5 {[%clk 0:02:02]} 17... exd5 {[%clk 0:01:45]} 18. Qc3
{[%clk 0:01:48.1]} 18... Rh5 {[%clk 0:01:36.9]} 19. Rg3 {[%clk 0:01:41.4]} 19...
Be6 {[%clk 0:01:33.1]} 20. Rf1 {[%clk 0:01:39.4]} 20... Rf8 {[%clk 0:01:31.6]}
21. b4 {[%clk 0:01:38]} 21... Qd8 {[%clk 0:01:26.4]} 22. Qd4 {[%clk 0:01:35.8]}
22... Qh4 {[%clk 0:01:22.9]} 23. Kf2 {[%clk 0:01:11.6]} 23... g5 {[%clk
0:01:01.9]} 24. Ke2 {[%clk 0:00:42]} 24... Qxh2 {[%clk 0:00:59.7]} 25. Rff3
{[%clk 0:00:41.6]} 25... gxf4 {[%clk 0:00:54.9]} 26. exf4 {[%clk 0:00:40.9]}
26... Rhf5 {[%clk 0:00:47.7]} 27. Ke3 {[%clk 0:00:36.1]} 27... Qg1+ {[%clk
0:00:46.3]} 28. Kd3 {[%clk 0:00:28.9]} 28... Qd1+ {[%clk 0:00:46.8]} 29. Kc3
{[%clk 0:00:27.7]} 29... Qc1+ {[%clk 0:00:46.3]} 30. Kb3 {[%clk 0:00:25.1]}
30... Rxf4 {[%clk 0:00:40.9]} 31. Rxf4 {[%clk 0:00:24.5]} 31... Rxf4 {[%clk
0:00:40.2]} 32. Qxa7 {[%clk 0:00:18.4]} 32... Qb1+ {[%clk 0:00:37.8]} 33. Kc3
{[%clk 0:00:13]} 33... Qxb4+ {[%clk 0:00:37.9]} 34. Kc2 {[%clk 0:00:12.1]} 34...
Rf2+ {[%clk 0:00:37.4]} 35. Qxf2 {[%clk 0:00:11]} 35... Qc4+ {[%clk 0:00:34.4]}
36. Kb1 {[%clk 0:00:08.2]} 36... Qb4+ {[%clk 0:00:32.9]} 37. Rb3 {[%clk
0:00:07.9]} 37... Qe7 {[%clk 0:00:28.6]} 38. Rf3 {[%clk 0:00:01.8]} 38... h6
{[%clk 0:00:27.5]} 39. Rf6 {[%clk 0:00:01.9]} 39... Qh7+ {[%clk 0:00:20.3]} 40.
Qc2 {[%clk 0:00:01.4]} 40... Qxc2+ {[%clk 0:00:14.1]} 0-1

[Event "Late-Titled-Tuesday-Blitz-October-10-2023"]
[Site "Chess.com"]
[Date "2023.10.10"]
[Round "4"]
[White "jcibarra"]
[Black "chessisveryfun1264"]
[Result "1-0"]
[WhiteElo "2898"]
[BlackElo "2583"]
[TimeControl "180+1"]
[EndTime "14:36:58 PDT"]
[Termination "jcibarra won by resignation"]

1. e4 {[%clk 0:03:00.9]} 1... e6 {[%clk 0:02:47.7]} 2. d4 {[%clk 0:03:00.6]}
2... d5 {[%clk 0:02:47.4]} 3. Nc3 {[%clk 0:03:01.2]} 3... Bb4 {[%clk 0:02:46.4]}
4. Ne2 {[%clk 0:02:59.6]} 4... Nf6 {[%clk 0:02:42.8]} 5. Bg5 {[%clk 0:02:57.1]}
5... h6 {[%clk 0:02:38.6]} 6. Bxf6 {[%clk 0:02:56.9]} 6... Qxf6 {[%clk
0:02:39.5]} 7. a3 {[%clk 0:02:57.3]} 7... Bxc3+ {[%clk 0:02:39]} 8. Nxc3 {[%clk
0:02:58.2]} 8... c6 {[%clk 0:02:38.1]} 9. e5 {[%clk 0:02:57.2]} 9... Qe7 {[%clk
0:02:37.8]} 10. f4 {[%clk 0:02:57.3]} 10... O-O {[%clk 0:02:38]} 11. Qd2 {[%clk
0:02:47.3]} 11... b6 {[%clk 0:02:37.9]} 12. g4 {[%clk 0:02:44.4]} 12... Qh4+
{[%clk 0:02:34]} 13. Qf2 {[%clk 0:02:44.5]} 13... Qxg4 {[%clk 0:02:33.6]} 14.
Rg1 {[%clk 0:02:43.6]} 14... Qh5 {[%clk 0:02:28.4]} 15. Be2 {[%clk 0:02:41.8]}
15... Qf5 {[%clk 0:02:23.7]} 16. Bd3 {[%clk 0:02:41.7]} 16... Qh3 {[%clk
0:02:23.2]} 17. Rg3 {[%clk 0:02:41.2]} 17... Qh5 {[%clk 0:02:22.2]} 18. Be2
{[%clk 0:02:37.8]} 18... Qf5 {[%clk 0:02:21.9]} 19. O-O-O {[%clk 0:02:37.2]}
19... Ba6 {[%clk 0:02:16.4]} 20. Rdg1 {[%clk 0:02:36.8]} 20... Qh7 {[%clk
0:02:12.4]} 21. Bh5 {[%clk 0:02:19.3]} 21... Nd7 {[%clk 0:02:03.3]} 22. f5
{[%clk 0:02:02.3]} 22... exf5 {[%clk 0:01:54.7]} 23. Qg2 {[%clk 0:02:00.6]}
23... g5 {[%clk 0:01:46.9]} 24. h4 {[%clk 0:01:57.8]} 24... f4 {[%clk
0:01:46.4]} 25. Rh3 {[%clk 0:01:50.8]} 25... f6 {[%clk 0:01:30.7]} 26. hxg5
{[%clk 0:01:36.7]} 26... fxg5 {[%clk 0:01:29.8]} 27. Bg4 {[%clk 0:01:36.1]}
27... Bc8 {[%clk 0:01:19.2]} 28. Rgh1 {[%clk 0:01:22.4]} 28... Kg7 {[%clk
0:01:04.4]} 29. Rxh6 {[%clk 0:01:03.1]} 29... Qxh6 {[%clk 0:01:05.3]} 30. Rxh6
{[%clk 0:01:02.9]} 30... Kxh6 {[%clk 0:01:06.2]} 31. Qh3+ {[%clk 0:01:03.4]}
31... Kg7 {[%clk 0:01:05.2]} 32. Bxd7 {[%clk 0:01:04.1]} 32... Bxd7 {[%clk
0:01:00.6]} 33. Qxd7+ {[%clk 0:01:03.7]} 33... Rf7 {[%clk 0:01:01.5]} 34. Qg4
{[%clk 0:01:02.1]} 34... Kg6 {[%clk 0:00:58.7]} 35. Nd1 {[%clk 0:00:57.2]} 35...
Re8 {[%clk 0:00:57.2]} 36. Nf2 {[%clk 0:00:56.1]} 36... c5 {[%clk 0:00:54.1]}
37. Nh3 {[%clk 0:00:54.6]} 37... Rf5 {[%clk 0:00:54.1]} 38. c3 {[%clk
0:00:48.4]} 38... cxd4 {[%clk 0:00:54.4]} 39. cxd4 {[%clk 0:00:49.3]} 39... Rh8
{[%clk 0:00:54.4]} 40. Nf2 {[%clk 0:00:32.6]} 40... Rh4 {[%clk 0:00:53.1]} 41.
Qf3 {[%clk 0:00:30.9]} 41... Rh2 {[%clk 0:00:41.5]} 42. Ng4 {[%clk 0:00:31]}
42... Rh4 {[%clk 0:00:41.7]} 43. Qxd5 {[%clk 0:00:23.4]} 43... Kh5 {[%clk
0:00:36.9]} 44. Qf3 {[%clk 0:00:17.3]} 44... Kg6 {[%clk 0:00:23.5]} 45. e6
{[%clk 0:00:16.4]} 45... Rh7 {[%clk 0:00:22.9]} 46. Qe4 {[%clk 0:00:11.9]} 46...
f3 {[%clk 0:00:20.1]} 47. Ne3 {[%clk 0:00:11.3]} 47... Rc7+ {[%clk 0:00:19.7]}
48. Kd2 {[%clk 0:00:11]} 1-0

[Event "Late-Titled-Tuesday-Blitz-October-10-2023"]
[Site "Chess.com"]
[Date "2023.10.10"]
[Round "4"]
[White "greekplayer1"]
[Black "Rozhkov_V"]
[Result "1-0"]
[WhiteElo "2659"]
[BlackElo "2408"]
[TimeControl "180+1"]
[EndTime "14:36:58 PDT"]
[Termination "greekplayer1 won by checkmate"]

1. e4 {[%clk 0:02:20.5]} 1... e6 {[%clk 0:02:59.5]} 2. d4 {[%clk 0:02:20.4]}
2... d5 {[%clk 0:03:00]} 3. Nc3 {[%clk 0:02:21]} 3... Bb4 {[%clk 0:02:59.5]} 4.
e5 {[%clk 0:02:05.8]} 4... c5 {[%clk 0:02:59.2]} 5. a3 {[%clk 0:02:03.6]} 5...
Bxc3+ {[%clk 0:02:59.2]} 6. bxc3 {[%clk 0:02:04.4]} 6... Ne7 {[%clk 0:02:59.8]}
7. Qg4 {[%clk 0:01:52]} 7... Qc7 {[%clk 0:02:59.3]} 8. Qd1 {[%clk 0:01:47.4]}
8... cxd4 {[%clk 0:02:21.5]} 9. cxd4 {[%clk 0:01:48.3]} 9... Qc3+ {[%clk
0:02:21.4]} 10. Bd2 {[%clk 0:01:37.4]} 10... Qxd4 {[%clk 0:02:20.9]} 11. Nf3
{[%clk 0:01:38.3]} 11... Qe4+ {[%clk 0:02:20.2]} 12. Be2 {[%clk 0:01:37.8]}
12... Nbc6 {[%clk 0:02:17.4]} 13. O-O {[%clk 0:01:37]} 13... Nxe5 {[%clk
0:02:16.7]} 14. Re1 {[%clk 0:01:31.9]} 14... Nxf3+ {[%clk 0:02:14.7]} 15. Bxf3
{[%clk 0:01:32.8]} 15... Qd4 {[%clk 0:01:50.7]} 16. c4 {[%clk 0:01:15.8]} 16...
O-O {[%clk 0:01:24.3]} 17. Bb4 {[%clk 0:01:14.1]} 17... Qf6 {[%clk 0:00:41.1]}
18. cxd5 {[%clk 0:01:09.6]} 18... Rd8 {[%clk 0:00:40.7]} 19. d6 {[%clk
0:00:37.3]} 19... Nf5 {[%clk 0:00:29.4]} 20. Rc1 {[%clk 0:00:35.8]} 20... e5
{[%clk 0:00:22.8]} 21. Qd5 {[%clk 0:00:20]} 21... Nd4 {[%clk 0:00:16.2]} 22.
Rxe5 {[%clk 0:00:18.1]} 22... Nxf3+ {[%clk 0:00:15.9]} 23. gxf3 {[%clk 0:00:19]}
23... Be6 {[%clk 0:00:12.1]} 24. Qd4 {[%clk 0:00:17.6]} 24... Qxf3 {[%clk
0:00:09.7]} 25. Rc3 {[%clk 0:00:15.4]} 25... Qf6 {[%clk 0:00:09.3]} 26. Rg3
{[%clk 0:00:15]} 26... Rac8 {[%clk 0:00:09.1]} 27. Bc3 {[%clk 0:00:12.6]} 27...
Qh6 {[%clk 0:00:05.6]} 28. Reg5 {[%clk 0:00:10.5]} 28... f6 {[%clk 0:00:05.2]}
29. Rxg7+ {[%clk 0:00:09.9]} 29... Kf8 {[%clk 0:00:05.6]} 30. Qxf6+ {[%clk
0:00:09.4]} 30... Qxf6 {[%clk 0:00:06.3]} 31. Bxf6 {[%clk 0:00:10.2]} 31... Rc1+
{[%clk 0:00:05.9]} 32. Kg2 {[%clk 0:00:10.8]} 32... Bd5+ {[%clk 0:00:05.4]} 33.
Kh3 {[%clk 0:00:11.2]} 33... Be6+ {[%clk 0:00:05.1]} 34. Kh4 {[%clk 0:00:11]}
34... Rd7 {[%clk 0:00:05.2]} 35. Be7+ {[%clk 0:00:10.3]} 35... Ke8 {[%clk
0:00:04.8]} 36. Rf3 {[%clk 0:00:10.1]} 36... Rc4+ {[%clk 0:00:03.1]} 37. Kg3
{[%clk 0:00:10.4]} 37... b6 {[%clk 0:00:01.5]} 38. Rf8# {[%clk 0:00:10.4]} 1-0

[Event "Late-Titled-Tuesday-Blitz-October-10-2023"]
[Site "Chess.com"]
[Date "2023.10.10"]
[Round "4"]
[White "TheMagician"]
[Black "maximnovik"]
[Result "0-1"]
[WhiteElo "2204"]
[BlackElo "2452"]
[TimeControl "180+1"]
[EndTime "14:36:59 PDT"]
[Termination "maximnovik won on time"]

1. d4 {[%clk 0:03:00.9]} 1... Nf6 {[%clk 0:02:26.2]} 2. c4 {[%clk 0:02:59.2]}
2... e6 {[%clk 0:02:25.8]} 3. Nc3 {[%clk 0:02:58.5]} 3... Bb4 {[%clk 0:02:24.8]}
4. Qc2 {[%clk 0:02:55.2]} 4... c5 {[%clk 0:02:24.5]} 5. dxc5 {[%clk 0:02:53.6]}
5... Bxc5 {[%clk 0:02:23.5]} 6. e3 {[%clk 0:02:41.9]} 6... a6 {[%clk 0:02:23]}
7. a3 {[%clk 0:02:41.3]} 7... b6 {[%clk 0:02:21.7]} 8. b4 {[%clk 0:02:41.2]}
8... Be7 {[%clk 0:02:20.9]} 9. Bb2 {[%clk 0:02:40]} 9... Bb7 {[%clk 0:02:20.9]}
10. Nf3 {[%clk 0:02:37.2]} 10... O-O {[%clk 0:02:20.8]} 11. Be2 {[%clk
0:02:36.6]} 11... d6 {[%clk 0:02:20.2]} 12. O-O {[%clk 0:02:35]} 12... Nbd7
{[%clk 0:02:20.6]} 13. Rfd1 {[%clk 0:02:33.7]} 13... Rc8 {[%clk 0:02:20.6]} 14.
Rac1 {[%clk 0:02:33]} 14... Qc7 {[%clk 0:02:20.7]} 15. Qb1 {[%clk 0:02:20.3]}
15... Qb8 {[%clk 0:02:15.9]} 16. Ng5 {[%clk 0:02:15.4]} 16... Qa8 {[%clk
0:02:13.6]} 17. Nf3 {[%clk 0:02:07.3]} 17... Ng4 {[%clk 0:01:51.9]} 18. Ng5
{[%clk 0:01:40.5]} 18... Bxg5 {[%clk 0:01:43.8]} 19. Bxg4 {[%clk 0:01:35.3]}
19... Bxg2 {[%clk 0:01:42.6]} 20. Rxd6 {[%clk 0:01:23.5]} 20... Ne5 {[%clk
0:01:41.4]} 21. Be2 {[%clk 0:01:14.6]} 21... Nxc4 {[%clk 0:01:31.6]} 22. Rd4
{[%clk 0:01:07.5]} 22... Nxb2 {[%clk 0:01:29.4]} 23. Qxb2 {[%clk 0:01:07]} 23...
Bf6 {[%clk 0:01:27.7]} 24. Rg4 {[%clk 0:01:06.8]} 24... Bf3 {[%clk 0:01:15.4]}
25. Bxf3 {[%clk 0:01:05]} 25... Qxf3 {[%clk 0:01:15.3]} 26. Rg3 {[%clk
0:01:04.6]} 26... Qc6 {[%clk 0:01:13.8]} 27. e4 {[%clk 0:01:03.5]} 27... Qxe4
{[%clk 0:01:10.9]} 28. Nxe4 {[%clk 0:00:52.3]} 28... Bxb2 {[%clk 0:01:09.6]} 29.
Rd1 {[%clk 0:00:51]} 29... Rfd8 {[%clk 0:01:07.4]} 30. Rgd3 {[%clk 0:00:45.5]}
30... Rxd3 {[%clk 0:01:05.9]} 31. Rxd3 {[%clk 0:00:45.6]} 31... f5 {[%clk
0:01:04.3]} 32. Ng5 {[%clk 0:00:44.8]} 32... e5 {[%clk 0:00:55.1]} 33. Rd7
{[%clk 0:00:38.1]} 33... e4 {[%clk 0:00:50.9]} 34. a4 {[%clk 0:00:32.5]} 34...
Re8 {[%clk 0:00:40.2]} 35. Nf7 {[%clk 0:00:18.3]} 35... Bf6 {[%clk 0:00:34.6]}
36. Nd6 {[%clk 0:00:17.9]} 36... Rd8 {[%clk 0:00:34.5]} 37. Rxd8+ {[%clk
0:00:17.4]} 37... Bxd8 {[%clk 0:00:34.6]} 38. Nxf5 {[%clk 0:00:18]} 38... Kf7
{[%clk 0:00:27]} 39. Nd6+ {[%clk 0:00:16.4]} 39... Ke6 {[%clk 0:00:27.2]} 40.
Nxe4 {[%clk 0:00:16.6]} 40... Kd5 {[%clk 0:00:26.8]} 41. Nd2 {[%clk 0:00:16.5]}
41... Kd4 {[%clk 0:00:25.1]} 0-1